bitfinex-derivatives/quotes_BTCF0:USTF0_20250729
["timestamp","ask_amount","ask_price","bid_price","bid_amount"]
[1753795780209,0.3853252,119010.0,119000.0,0.87152164]
[1753795781209,0.4253252,119010.0,119000.0,0.87152164]
[1753795782611,0.3853252,119010.0,119000.0,0.87152164]
[1753795782806,0.3260052,119010.0,119000.0,0.87152164]
[1753795785610,0.3798552,119010.0,119000.0,0.87152164]
[1753795788709,0.4898552,119010.0,119000.0,0.87152164]
[1753795789115,0.4898552,119010.0,119000.0,0.70344204]
[1753795789315,0.4898552,119010.0,119000.0,0.2822]
[1753795789316,0.74666501,119010.0,119000.0,0.2822]
[1753795790004,0.63666501,119010.0,119000.0,0.4502795]
[1753795790206,0.63666501,119010.0,119000.0,0.2822]
[1753795790407,0.67666501,119010.0,119000.0,0.4502795]
[1753795791011,0.4389952,119010.0,119000.0,0.4502795]
[1753795791512,0.3589952,119010.0,119000.0,0.4502795]
[1753795792113,0.59666501,119010.0,119000.0,0.4502795]
[1753795793013,0.3589952,119010.0,119000.0,0.4502795]
[1753795793816,0.3589952,119010.0,119000.0,0.2822]
[1753795794007,0.3589952,119010.0,119000.0,0.3921195]
[1753795794205,0.59666501,119010.0,119000.0,0.4504995]
[1753795794408,0.60862501,119010.0,119000.0,0.4504995]
[1753795794610,0.60862501,119010.0,119000.0,0.28242]
[1753795794809,0.60862501,119010.0,119000.0,0.4504995]
[1753795795018,0.3709552,119010.0,119000.0,0.28242]
[1753795795212,0.60862501,119010.0,119000.0,0.4504995]
[1753795795605,0.59666501,119010.0,119000.0,0.4504995]
[1753795797115,0.59666501,119010.0,119000.0,0.12311]
[1753795797317,0.60862501,119010.0,119000.0,0.8832]
[1753795797819,0.60862501,119010.0,119000.0,0.92127]
[1753795798418,0.60862501,119010.0,119000.0,0.97965]
[1753795799217,0.59666501,119010.0,119000.0,0.97965]
[1753795799420,0.59666501,119010.0,119000.0,1.1477296]
[1753795799617,0.59666501,119010.0,119000.0,0.97965]
[1753795800014,0.59666501,119010.0,119000.0,1.1477296]
[1753795800215,0.2460052,119010.0,119000.0,1.38539941]
[1753795800415,0.3400952,119010.0,119000.0,1.57811981]
[1753795800616,0.2037284,119010.0,119000.0,1.5085296]
[1753795800921,0.4827485,119020.0,119010.0,0.4491654]
[1753795801217,0.6127485,119020.0,119010.0,0.2811]
[1753795801423,0.6127485,119020.0,119010.0,0.97514]
[1753795801424,1.21121831,119020.0,119010.0,0.97514]
[1753795801818,1.22317831,119020.0,119010.0,0.97514]
[1753795802124,0.86237831,119020.0,119010.0,0.97514]
[1753795802315,1.22317831,119020.0,119010.0,0.97514]
[1753795802518,0.85041831,119020.0,119010.0,1.1432054]
[1753795803220,0.6127485,119020.0,119010.0,1.1431254]
[1753795803522,0.5397585,119020.0,119010.0,1.16216627]
[1753795803920,0.5936085,119020.0,119010.0,1.16216627]
[1753795804421,0.5936085,119020.0,119010.0,1.22946893]
[1753795804630,0.5397585,119020.0,119010.0,1.22946893]
[1753795805319,0.5397585,119020.0,119010.0,1.28991097]
[1753795805513,0.5397585,119020.0,119010.0,1.88838078]
[1753795805514,0.2900775,119020.0,119010.0,1.88838078]
[1753795806124,0.1680513,119020.0,119010.0,1.60536377]
[1753795806318,0.31131705,119030.0,119020.0,0.2061213]
[1753795806518,0.26930475,119030.0,119020.0,0.69894559]
[1753795806722,0.26930475,119030.0,119020.0,0.87033559]
[1753795807123,0.27930475,119030.0,119020.0,0.87033559]
[1753795808225,0.31495475,119030.0,119020.0,0.87233559]
[1753795808428,0.36880475,119030.0,119020.0,0.87233559]
[1753795808627,0.47880475,119030.0,119020.0,0.70428429]
[1753795808828,0.62561456,119030.0,119020.0,0.70428429]
[1753795809527,0.62561456,119030.0,119020.0,0.34348429]
[1753795809728,0.62561456,119030.0,119020.0,0.51153559]
[1753795810127,0.62561456,119030.0,119020.0,0.87233559]
[1753795810427,0.27930475,119030.0,119020.0,0.87233559]
[1753795811129,0.31495475,119030.0,119020.0,0.87233559]
[1753795811326,0.36880475,119030.0,119020.0,0.87233559]
[1753795812028,0.3516108,119030.0,119020.0,0.87233559]
[1753795814828,4e-05,119030.0,119020.0,1.04962111]
[1753795815032,0.1680772,119030.0,119020.0,1.04962111]
[1753795815529,0.1680772,119030.0,119020.0,1.1100054]
[1753795816225,4e-05,119030.0,119020.0,1.1100054]
[1753795816432,0.1680772,119030.0,119020.0,1.1100054]
[1753795816821,4e-05,119030.0,119020.0,1.1100054]
[1753795817031,0.1680772,119030.0,119020.0,1.1100054]
[1753795817532,0.1680772,119030.0,119020.0,1.04962111]
[1753795817721,4e-05,119030.0,119020.0,1.04962111]
[1753795818126,0.1680772,119030.0,119020.0,1.04962111]
[1753795819432,0.1680772,119030.0,119020.0,1.10994966]
[1753795821726,4e-05,119030.0,119020.0,1.10994966]
[1753795822724,4e-05,119030.0,119020.0,1.04962111]
[1753795823242,0.1680772,119030.0,119020.0,0.8119513]
[1753795823436,4e-05,119030.0,119020.0,1.04962111]
[1753795824035,4e-05,119030.0,119020.0,2.28709151]
[1753795824731,0.1680772,119030.0,119020.0,2.28709151]
[1753795824937,0.1680772,119030.0,119020.0,2.7426617]
[1753795825435,4e-05,119030.0,119020.0,2.6670313]
[1753795825833,0.1680772,119030.0,119020.0,2.6670313]
[1753795826140,0.1680772,119030.0,119020.0,2.90470111]
[1753795826837,0.1680772,119030.0,119020.0,2.6670313]
[1753795827640,4e-05,119030.0,119020.0,2.6670313]
[1753795828035,0.1680772,119030.0,119020.0,2.6670313]
[1753795828740,4e-05,119030.0,119020.0,2.90470111]
[1753795829438,4e-05,119030.0,119020.0,2.98033151]
[1753795830740,0.01,119050.0,119040.0,0.168023]
[1753795831040,0.1780126,119050.0,119040.0,1.503823]
[1753795831535,0.2145626,119050.0,119040.0,1.503823]
[1753795831733,0.2145626,119050.0,119040.0,1.56417114]
[1753795831934,0.2145626,119050.0,119040.0,0.87417114]
[1753795832137,0.2894626,119050.0,119040.0,1.506823]
[1753795832936,0.2894626,119050.0,119040.0,1.56717114]
[1753795833137,0.2894626,119050.0,119040.0,1.57552976]
[1753795833843,0.2894626,119050.0,119040.0,1.58252976]
[1753795834538,0.2894626,119050.0,119040.0,1.57552976]
[1753795836037,0.2894626,119050.0,119040.0,1.57252976]
[1753795838745,0.2894626,119050.0,119040.0,0.87952976]
[1753795838936,0.65713241,119050.0,119040.0,1.57228976]
[1753795839139,0.52713241,119050.0,119040.0,1.21148976]
[1753795839340,0.62713241,119050.0,119040.0,0.98712597]
[1753795839542,0.99989241,119050.0,119040.0,0.98712597]
[1753795839737,0.99989241,119050.0,119040.0,1.04348597]
[1753795841451,0.99989241,119050.0,119040.0,1.21150897]
[1753795841651,0.98793241,119050.0,119040.0,1.21150897]
[1753795842346,0.98793241,119050.0,119040.0,1.04348597]
[1753795842851,0.98793241,119050.0,119040.0,1.21150897]
[1753795843952,0.7502626,119050.0,119040.0,0.51878897]
[1753795844150,0.98793241,119050.0,119040.0,1.21134897]
[1753795846150,0.98793241,119050.0,119040.0,1.15094162]
[1753795846550,0.98793241,119050.0,119040.0,1.04338202]
[1753795847050,0.99989241,119050.0,119040.0,1.04338202]
[1753795847853,0.98793241,119050.0,119040.0,0.35082202]
[1753795848158,1.76636222,119050.0,119040.0,0.69252]
[1753795848460,0.290773,119040.0,119030.0,0.8010134]
[1753795848654,1.23691262,119040.0,119030.0,0.1085734]
[1753795848855,1.23691262,119040.0,119030.0,0.74055]
[1753795849158,0.99924281,119040.0,119030.0,0.74055]
[1753795849958,0.99924281,119040.0,119030.0,0.80448]
[1753795850159,0.99924281,119040.0,119030.0,1.0796572]
[1753795850359,0.99924281,119040.0,119030.0,1.1364672]
[1753795850759,0.99924281,119040.0,119030.0,0.96843]
[1753795850956,0.99924281,119040.0,119030.0,1.1364672]
[1753795851156,0.99924281,119040.0,119030.0,1.1969306]
[1753795851357,0.99924281,119040.0,119030.0,1.0288934]
[1753795852062,0.99924281,119040.0,119030.0,1.1969306]
[1753795852262,0.99924281,119040.0,119030.0,1.1364672]
[1753795852461,0.99924281,119040.0,119030.0,0.96843]
[1753795853064,0.99924281,119040.0,119030.0,0.27599]
[1753795853263,0.99924281,119040.0,119030.0,1.1363872]
[1753795853760,0.62648281,119040.0,119030.0,1.1363872]
[1753795853966,0.168023,119040.0,119030.0,1.4971872]
[1753795854159,0.168023,119040.0,119030.0,1.5576506]
[1753795857361,0.168023,119040.0,119030.0,1.4971872]
[1753795860567,0.205753,119040.0,119030.0,1.4971872]
[1753795860770,0.259673,119040.0,119030.0,1.4971872]
[1753795861075,0.49734281,119040.0,119030.0,1.4971872]
[1753795861267,0.315753,119040.0,119030.0,1.4971872]
[1753795861467,0.315753,119040.0,119030.0,1.5728176]
[1753795861664,0.325753,119040.0,119030.0,1.4971872]
[1753795861860,0.720473,119040.0,119030.0,0.27599]
[1753795862065,1.21495262,119040.0,119030.0,0.80060394]
[1753795862261,0.98924281,119040.0,119030.0,0.80060635]
[1753795862463,1.22691262,119040.0,119030.0,0.80056635]
[1753795862775,0.98924281,119040.0,119030.0,0.80056635]
[1753795862968,0.98924281,119040.0,119030.0,0.80408]
[1753795863267,0.98924281,119040.0,119030.0,0.87585]
[1753795864377,0.98924281,119040.0,119010.0,0.08634353]
[1753795864378,0.1680513,119020.0,119010.0,0.08634353]
[1753795864575,0.99927111,119020.0,119010.0,1.06654384]
[1753795864769,0.99927111,119020.0,119010.0,1.05792928]
[1753795864974,0.99927111,119020.0,119010.0,1.05433353]
[1753795865477,0.99927111,119020.0,119010.0,0.01904087]
[1753795865670,1.53656861,119020.0,119010.0,7e-08]
[1753795865869,0.2369095,119000.0,118990.0,0.06694605]
[1753795866179,0.2364078,118980.0,118970.0,0.07892258]
[1753795866375,1.01790761,118980.0,118970.0,0.01851683]
[1753795867069,1.01790761,118980.0,118970.0,0.15421683]
[1753795867878,0.290356,118960.0,118950.0,0.31649933]
[1753795868183,0.4079702,118950.0,118940.0,0.88979]
[1753795868373,1.13644001,118950.0,118940.0,0.92976]
[1753795868775,0.4079943,118940.0,118930.0,0.29450631]
[1753795868972,1.13646411,118940.0,118930.0,0.23769631]
[1753795869174,1.13646411,118940.0,118930.0,0.21918]
[1753795869874,1.13646411,118940.0,118930.0,0.18381]
[1753795870682,1.13646411,118940.0,118930.0,0.18681]
[1753795870881,1.23312821,118940.0,118930.0,0.18681]
[1753795871679,0.8987943,118940.0,118930.0,0.18681]
[1753795871876,1.23312821,118940.0,118930.0,0.18681]
[1753795872871,1.23312821,118940.0,118910.0,0.21883096]
[1753795872872,0.1681926,118920.0,118910.0,0.21883096]
[1753795873072,1.22315651,118920.0,118910.0,1.20405604]
[1753795874073,0.8888226,118920.0,118910.0,1.20405604]
[1753795874477,0.5280226,118920.0,118910.0,1.20905604]
[1753795874880,0.5280226,118920.0,118910.0,1.20897604]
[1753795874881,0.31341,118920.0,118910.0,1.20897604]
[1753795875081,0.4816026,118920.0,118910.0,1.20897604]
[1753795875279,0.81593651,118920.0,118910.0,0.22418]
[1753795875475,0.8889826,118920.0,118910.0,1.1380368]
[1753795875680,0.6767226,118920.0,118910.0,1.1380368]
[1753795875882,0.03773,118920.0,118910.0,1.4998368]
[1753795876076,0.3013653,118930.0,118920.0,0.4452026]
[1753795876276,0.2454353,118930.0,118920.0,0.4452026]
[1753795876476,0.3654353,118930.0,118920.0,0.4452026]
[1753795876672,0.62981291,118940.0,118930.0,0.4451885]
[1753795876878,0.73981291,118940.0,118930.0,1.1371485]
[1753795877083,0.83094291,118940.0,118930.0,0.96897]
[1753795877276,0.78471291,118940.0,118930.0,0.96897]
[1753795877678,0.89471291,118940.0,118930.0,0.96897]
[1753795877879,0.39301291,118940.0,118930.0,1.1371485]
[1753795878085,0.38901291,118940.0,118930.0,1.1371485]
[1753795878384,0.26901291,118940.0,118930.0,1.1371485]
[1753795878582,0.26901291,118940.0,118930.0,1.4979485]
[1753795878879,0.2101995,118950.0,118940.0,0.4451743]
[1753795879074,0.2201995,118950.0,118940.0,0.4451743]
[1753795880587,0.2101995,118950.0,118940.0,0.4451743]
[1753795880885,0.2453995,118950.0,118940.0,0.4451743]
[1753795881084,0.4055995,118950.0,118940.0,0.27701]
[1753795881291,0.5721795,118950.0,118940.0,0.22336]
[1753795881582,0.9329795,118950.0,118940.0,0.27701]
[1753795881783,1.26731341,118950.0,118940.0,0.18683]
[1753795882582,1.14731341,118950.0,118940.0,0.27701]
[1753795882789,1.25731341,118950.0,118940.0,0.27701]
[1753795882992,1.14731341,118950.0,118940.0,0.27701]
[1753795883189,0.9329795,118950.0,118940.0,0.27701]
[1753795885585,0.5621795,118950.0,118940.0,0.27701]
[1753795885791,0.2453995,118950.0,118940.0,0.27701]
[1753795885992,0.4850995,118950.0,118940.0,0.27701]
[1753795886287,0.5621795,118950.0,118940.0,0.27701]
[1753795886491,0.5621795,118950.0,118940.0,0.22336]
[1753795886492,0.9229795,118950.0,118940.0,0.22336]
[1753795886692,0.5621795,118950.0,118940.0,0.22336]
[1753795887088,0.4521795,118950.0,118940.0,0.27701]
[1753795887395,0.3653995,118950.0,118940.0,0.4451743]
[1753795887589,0.4213295,118950.0,118940.0,0.27701]
[1753795887796,0.5255995,118950.0,118940.0,0.27701]
[1753795888195,0.5721795,118950.0,118940.0,0.27701]
[1753795888491,0.9329795,118950.0,118940.0,0.18683]
[1753795888993,0.9329795,118950.0,118940.0,0.24048]
[1753795889199,0.5721795,118950.0,118940.0,0.27701]
[1753795889390,0.5721795,118950.0,118940.0,0.12345]
[1753795889693,1.26731341,118950.0,118940.0,0.18683]
[1753795890083,0.2362343,118940.0,118930.0,0.83403996]
[1753795890291,0.86447821,118940.0,118930.0,0.98735996]
[1753795890488,1.22527821,118940.0,118930.0,0.01862996]
[1753795890691,0.4101584,118930.0,118920.0,0.69168]
[1753795890888,1.20529231,118930.0,118920.0,0.69168]
[1753795891394,0.4101726,118920.0,118910.0,0.96865]
[1753795891596,0.5201726,118920.0,118910.0,1.1368567]
[1753795891785,0.2395926,118920.0,118910.0,1.4976567]
[1753795891988,0.2943327,118930.0,118920.0,0.3915526]
[1753795892189,0.4143327,118930.0,118920.0,0.4452026]
[1753795892497,0.2522851,118930.0,118920.0,0.8060026]
[1753795893594,0.2522851,118930.0,118920.0,0.8080026]
[1753795894196,0.3974851,118930.0,118920.0,0.8080026]
[1753795894511,0.3743151,118930.0,118920.0,0.4472026]
[1753795894711,0.6042651,118930.0,118920.0,0.27901]
[1753795894911,0.4942651,118930.0,118920.0,1.33141]
[1753795895211,0.6242651,118930.0,118920.0,1.33141]
[1753795895401,0.6142651,118930.0,118920.0,1.27776]
[1753795895800,0.6142651,118930.0,118920.0,1.33141]
[1753795896003,0.6142651,118930.0,118920.0,1.4996019]
[1753795896409,0.4942651,118930.0,118920.0,1.4996019]
[1753795896611,0.2522851,118930.0,118920.0,1.4996019]
[1753795897304,0.18506663,118940.0,118930.0,0.4451878]
[1753795897506,0.18506663,118940.0,118930.0,0.77952171]
[1753795897909,0.01689653,118940.0,118930.0,1.14032171]
[1753795898107,0.01689653,118940.0,118930.0,1.30848171]
[1753795898814,0.01689653,118940.0,118930.0,1.36888969]
[1753795899610,0.01689653,118940.0,118930.0,1.20072969]
[1753795900211,0.01689653,118940.0,118930.0,0.86639578]
[1753795900415,0.01689653,118940.0,118930.0,1.20072969]
[1753795902014,0.01689653,118940.0,118930.0,1.20172969]
[1753795902317,0.18506023,118940.0,118930.0,0.11135798]
[1753795902509,0.87137414,118940.0,118930.0,0.96933]
[1753795902709,0.87137414,118940.0,118930.0,0.91568]
[1753795903021,0.42704023,118940.0,118930.0,0.87915]
[1753795903215,0.42704023,118940.0,118930.0,0.24148]
[1753795903517,0.78784023,118940.0,118930.0,0.9328]
[1753795903822,0.38046023,118940.0,118930.0,0.96933]
[1753795904007,0.38046023,118940.0,118930.0,1.1375078]
[1753795904213,0.27619023,118940.0,118930.0,1.1375078]
[1753795904816,0.49617023,118940.0,118930.0,0.96933]
[1753795905118,0.42427023,118940.0,118930.0,0.96933]
[1753795905315,0.54427023,118940.0,118930.0,0.97048]
[1753795905622,0.54427023,118940.0,118930.0,0.69228]
[1753795905623,1.21940414,118940.0,118930.0,0.69228]
[1753795905818,1.23778658,118940.0,118930.0,0.69228]
[1753795906119,1.23778658,118940.0,118930.0,0.7382]
[1753795906307,0.87698658,118940.0,118930.0,0.80271]
[1753795906512,0.77698658,118940.0,118930.0,0.80271]
[1753795906716,0.88698658,118940.0,118930.0,0.96434]
[1753795907017,0.54427023,118940.0,118930.0,0.96434]
[1753795907205,0.22026023,118940.0,118930.0,1.1325178]
[1753795907409,0.22026023,118940.0,118930.0,1.4933178]
[1753795908008,0.2033637,118940.0,118930.0,1.4933178]
[1753795909914,0.2575237,118940.0,118930.0,1.4933178]
[1753795911222,0.2033637,118940.0,118930.0,1.4933178]
[1753795911520,0.2033637,118940.0,118930.0,1.1325178]
[1753795912124,0.2033637,118940.0,118930.0,1.4933178]
[1753795913322,0.1681637,118940.0,118930.0,1.4933178]
[1753795914919,0.4067437,118940.0,118930.0,1.32514]
[1753795915113,0.4067437,118940.0,118930.0,0.73792]
[1753795915114,1.22187761,118940.0,118930.0,0.73792]
[1753795915322,1.23187761,118940.0,118930.0,0.73792]
[1753795915926,1.10191761,118940.0,118930.0,0.80243]
[1753795916325,1.10191761,118940.0,118930.0,1.0971789]
[1753795916532,0.7194837,118940.0,118930.0,1.0971789]
[1753795916921,0.8294837,118940.0,118930.0,1.0971789]
[1753795917220,0.2782037,118940.0,118930.0,1.4579789]
[1753795917426,0.1682048,118940.0,118930.0,1.85272079]
[1753795917830,4e-05,118940.0,118930.0,1.85272079]
[1753795918019,0.1682048,118940.0,118930.0,1.85272079]
[1753795918220,4e-05,118940.0,118930.0,1.85272079]
[1753795918623,0.1682048,118940.0,118930.0,1.85272079]
[1753795919019,4e-05,118940.0,118930.0,1.85272079]
[1753795919824,0.1682048,118940.0,118930.0,1.51838688]
[1753795920032,0.3163648,118940.0,118930.0,1.51838688]
[1753795920526,0.82189871,118940.0,118930.0,0.27306]
[1753795920826,0.5156648,118940.0,118930.0,1.1321189]
[1753795921024,0.4056648,118940.0,118930.0,1.1321189]
[1753795921221,0.3575648,118940.0,118930.0,1.4929189]
[1753795921422,0.3575648,118940.0,118930.0,1.55332688]
[1753795921621,0.3163648,118940.0,118930.0,1.19252688]
[1753795922129,0.3163648,118940.0,118930.0,1.1321189]
[1753795922524,0.4163648,118940.0,118930.0,0.96394]
[1753795922723,0.3163648,118940.0,118930.0,1.1321189]
[1753795923330,0.81189871,118940.0,118930.0,1.02434798]
[1753795923528,1.22079871,118940.0,118930.0,0.75228798]
[1753795923935,1.22079871,118940.0,118930.0,0.7378]
[1753795924120,1.22079871,118940.0,118930.0,0.87408]
[1753795924321,1.22079871,118940.0,118930.0,0.93448798]
[1753795924632,0.85999871,118940.0,118930.0,1.02434798]
[1753795925024,1.22079871,118940.0,118930.0,0.96954798]
[1753795925631,0.85999871,118940.0,118930.0,0.21826]
[1753795925826,1.22079871,118940.0,118930.0,0.96947041]
[1753795926024,1.22079871,118940.0,118930.0,0.06145041]
[1753795926225,1.22079871,118940.0,118930.0,0.79809041]
[1753795926425,1.22079871,118940.0,118930.0,0.86260041]
[1753795927228,0.1681789,118930.0,118920.0,0.0756304]
[1753795927431,1.22077281,118930.0,118920.0,0.0756304]
[1753795927634,0.4056531,118920.0,118910.0,0.8122304]
[1753795927829,1.23799312,118920.0,118910.0,0.7663104]
[1753795928026,1.23799312,118920.0,118910.0,0.8122304]
[1753795928222,1.23799312,118920.0,118910.0,0.7366]
[1753795928435,1.23799312,118920.0,118910.0,0.80111]
[1753795929629,0.90365921,118920.0,118910.0,1.1309472]
[1753795929829,0.85555921,118920.0,118910.0,1.1309472]
[1753795930232,0.85555921,118920.0,118910.0,1.2065776]
[1753795931432,0.85555921,118920.0,118910.0,1.0383704]
[1753795931735,0.90365921,118920.0,118910.0,1.0383704]
[1753795932039,0.90365921,118920.0,118910.0,1.2065777]
[1753795932229,0.85555921,118920.0,118910.0,1.2065777]
[1753795933031,0.70253921,118920.0,118910.0,1.2065777]
[1753795933236,0.71253921,118920.0,118910.0,1.2065777]
[1753795933436,0.79311921,118920.0,118910.0,1.2065777]
[1753795933640,0.66311921,118920.0,118910.0,1.2065777]
[1753795934126,0.44409921,118920.0,118910.0,1.1309473]
[1753795934330,0.44409921,118920.0,118910.0,1.20657674]
[1753795935540,0.44409921,118920.0,118910.0,1.1309473]
[1753795935744,0.44409921,118920.0,118910.0,1.19144842]
[1753795937441,0.44409921,118920.0,118910.0,1.55224842]
[1753795937631,0.44409921,118920.0,118910.0,1.19144842]
[1753795938927,0.44409921,118920.0,118910.0,1.02324112]
[1753795939133,0.44409921,118920.0,118910.0,1.1309471]
[1753795939332,0.48564921,118920.0,118910.0,1.1309471]
[1753795939744,0.48564921,118920.0,118910.0,1.4917471]
[1753795939944,0.33173921,118920.0,118910.0,1.1309471]
[1753795940236,0.18539921,118920.0,118910.0,1.4917471]
[1753795940535,0.18539921,118920.0,118910.0,1.55224822]
[1753795940938,0.01720611,118920.0,118910.0,1.55224822]
[1753795941133,4e-05,118940.0,118930.0,0.4316688]
[1753795941339,0.31131529,118950.0,118940.0,0.4316546]
[1753795942242,0.40000529,118950.0,118940.0,0.4316546]
[1753795942536,0.42642529,118950.0,118940.0,0.4316546]
[1753795942935,0.40000529,118950.0,118940.0,0.4316546]
[1753795943139,0.30336469,118950.0,118940.0,0.4316546]
[1753795943843,0.35796469,118950.0,118940.0,0.4316546]
[1753795944339,1.1948786,118950.0,118940.0,0.1167]
[1753795944542,1.2673486,118950.0,118940.0,0.92014]
[1753795944742,1.3088986,118950.0,118940.0,0.92014]
[1753795945042,0.9480986,118950.0,118940.0,0.92014]
[1753795945338,0.9480986,118950.0,118940.0,0.95389]
[1753795945538,1.3088986,118950.0,118940.0,0.1167]
[1753795945746,0.4026546,118940.0,118930.0,0.76731]
[1753795946044,1.20778851,118940.0,118930.0,0.82781112]
[1753795946237,1.20778851,118940.0,118930.0,0.79669112]
[1753795946636,1.20778851,118940.0,118930.0,0.85487112]
[1753795946841,1.20778851,118940.0,118930.0,0.92570112]
[1753795947343,1.20778851,118940.0,118930.0,0.92670112]
[1753795947543,1.20778851,118940.0,118930.0,0.98156112]
[1753795948536,0.84698851,118940.0,118930.0,1.14973992]
[1753795948938,0.84698851,118940.0,118930.0,1.14966944]
[1753795949432,1.20778851,118940.0,118930.0,1.14966944]
[1753795949636,1.20778851,118940.0,118930.0,1.01524064]
[1753795950040,1.20778851,118940.0,118930.0,0.75175064]
[1753795950943,0.8734546,118940.0,118930.0,0.10730064]
[1753795951144,1.20778851,118940.0,118930.0,0.10730064]
[1753795951447,1.20778851,118940.0,118930.0,0.37340934]
[1753795951649,1.20778851,118940.0,118930.0,0.40448934]
[1753795951840,0.84698851,118940.0,118930.0,0.43823934]
[1753795952144,0.5126546,118940.0,118930.0,0.49309934]
[1753795952444,0.4250546,118940.0,118930.0,0.4326687]
[1753795952644,0.8734546,118940.0,118930.0,0.32492661]
[1753795952835,1.20778851,118940.0,118930.0,0.32492661]
[1753795953345,0.84698851,118940.0,118930.0,0.32492661]
[1753795953546,0.5126546,118940.0,118930.0,0.32492661]
[1753795953735,0.84698851,118940.0,118930.0,0.13226661]
[1753795953942,1.20778851,118940.0,118930.0,0.23631661]
[1753795954135,1.89798851,118940.0,118930.0,0.23631661]
[1753795954342,0.4947125,118930.0,118920.0,0.0262789]
[1753795954543,0.402697,118910.0,118900.0,0.04587]
[1753795954745,1.20783091,118910.0,118900.0,0.12142764]
[1753795955052,1.20783091,118910.0,118900.0,0.17960764]
[1753795955352,1.20783091,118910.0,118900.0,0.10405]
[1753795955538,1.20783091,118910.0,118900.0,0.17488]
[1753795955739,1.20783091,118910.0,118900.0,0.4317112]
[1753795955945,1.20783091,118910.0,118900.0,0.4337112]
[1753795956248,0.873497,118910.0,118900.0,0.4377112]
[1753795956443,0.312297,118910.0,118900.0,1.1278712]
[1753795956641,0.312297,118910.0,118900.0,1.1238712]
[1753795957243,0.168207,118910.0,118900.0,1.81900511]
[1753795957451,0.168207,118910.0,118900.0,1.4846712]
[1753795958041,0.168207,118910.0,118900.0,1.56022884]
[1753795958249,0.168207,118910.0,118900.0,1.4846712]
[1753795958447,0.278207,118910.0,118900.0,1.31645]
[1753795958640,0.393317,118910.0,118900.0,1.4846712]
[1753795958840,0.283317,118910.0,118900.0,0.95565]
[1753795959150,0.256897,118910.0,118900.0,1.1238712]
[1753795959349,0.202297,118910.0,118900.0,1.4846712]
[1753795959752,0.168207,118910.0,118900.0,1.4826712]
[1753795960251,0.2269651,118920.0,118910.0,0.431697]
[1753795960549,0.2269651,118920.0,118910.0,0.792497]
[1753795962048,0.4620751,118920.0,118910.0,0.62429]
[1753795962253,0.87423901,118920.0,118910.0,0.26349]
[1753795962447,0.4199051,118920.0,118910.0,0.26349]
[1753795962640,0.4938551,118920.0,118910.0,0.431697]
[1753795962846,0.3738551,118920.0,118910.0,0.431697]
[1753795963042,0.4838551,118920.0,118910.0,0.26349]
[1753795963654,0.4574351,118920.0,118910.0,0.26349]
[1753795963850,0.4833751,118920.0,118910.0,0.26349]
[1753795964048,0.5033751,118920.0,118910.0,0.26349]
[1753795964446,0.92399901,118920.0,118910.0,0.32388068]
[1753795964657,1.28479901,118920.0,118910.0,0.06039068]
[1753795964961,0.4019169,118910.0,118900.0,0.73814]
[1753795965148,1.21705081,118910.0,118900.0,0.73814]
[1753795965446,0.168221,118900.0,118890.0,0.06613378]
[1753795965653,1.20706491,118900.0,118890.0,0.69016]
[1753795965846,1.20706491,118900.0,118890.0,0.73814]
[1753795966442,1.20706491,118900.0,118890.0,0.79588]
[1753795967056,1.20706491,118900.0,118890.0,0.86831]
[1753795967253,1.20706491,118900.0,118890.0,0.91976]
[1753795967454,1.20706491,118900.0,118890.0,0.95278]
[1753795967655,0.872731,118900.0,118890.0,0.95278]
[1753795968255,0.872731,118900.0,118890.0,0.95378]
[1753795968858,0.872731,118900.0,118890.0,0.95278]
[1753795969261,0.872731,118900.0,118890.0,1.1210152]
[1753795969557,0.825021,118900.0,118890.0,1.1210152]
[1753795969762,0.596951,118900.0,118890.0,1.1210152]
[1753795970061,0.315641,118900.0,118890.0,0.95278]
[1753795970267,0.315641,118900.0,118890.0,1.1210151]
[1753795970959,0.3479306,118910.0,118900.0,0.1682209]
[1753795971163,0.2523259,118910.0,118900.0,0.7916409]
[1753795972063,0.1682193,118910.0,118900.0,0.7916409]
[1753795974959,0.1682193,118910.0,118900.0,0.81073449]
[1753795975557,0.1682067,118910.0,118900.0,1.4394279]
[1753795975963,0.01687467,118920.0,118910.0,0.4308266]
[1753795976159,0.2522788,118930.0,118920.0,0.3730725]
[1753795976468,0.2522788,118930.0,118920.0,0.7916125]
[1753795976964,0.3840488,118930.0,118920.0,0.7916125]
[1753795977566,0.2876788,118930.0,118920.0,0.7916125]
[1753795978064,0.2943075,118940.0,118930.0,0.4307983]
[1753795978367,0.3043075,118940.0,118930.0,1.4817583]
[1753795979172,0.1681765,118940.0,118930.0,1.4817583]
[1753795979377,0.252218,118960.0,118950.0,0.43077]
[1753795979569,0.252218,118960.0,118950.0,1.48165]
[1753795979570,0.2101812,118960.0,118950.0,1.48165]
[1753795981362,0.2101812,118960.0,118950.0,1.48996875]
[1753795983468,0.2521976,118970.0,118960.0,0.1681359]
[1753795983675,0.22737151,118980.0,118970.0,0.4307418]
[1753795983870,0.18534431,118980.0,118970.0,1.4815418]
[1753795984868,0.18534431,118980.0,118970.0,1.81587571]
[1753795985073,0.18534431,118980.0,118970.0,1.4815418]
[1753795985272,0.01722251,118980.0,118970.0,1.4815418]
[1753795985473,0.18533011,118980.0,118970.0,1.4815418]
[1753795987175,0.31710011,118980.0,118970.0,1.4815418]
[1753795987373,0.44710011,118980.0,118970.0,1.31342]
[1753795987570,0.45963011,118980.0,118970.0,0.62342]
[1753795987772,0.88025402,118980.0,118970.0,1.37982723]
[1753795987971,0.90025402,118980.0,118970.0,1.37986723]
[1753795988276,0.77025402,118980.0,118970.0,1.37986723]
[1753795988672,0.88025402,118980.0,118970.0,1.37986723]
[1753795988875,0.88029402,118980.0,118970.0,0.62342]
[1753795989080,0.55596011,118980.0,118970.0,1.31342]
[1753795989574,0.54596011,118980.0,118970.0,1.31342]
[1753795989777,0.4187376,118980.0,118970.0,1.31342]
[1753795989980,0.4187376,118980.0,118970.0,1.4815418]
[1753795989981,0.3324476,118980.0,118970.0,1.4815418]
[1753795990183,0.2570976,118980.0,118970.0,1.4815418]
[1753795990477,0.2035476,118980.0,118970.0,1.4815418]
[1753795990880,0.2035476,118980.0,118970.0,1.31342]
[1753795991068,0.4406676,118980.0,118970.0,1.31342]
[1753795991371,0.4169576,118980.0,118970.0,1.26197]
[1753795991576,0.5369576,118980.0,118970.0,1.4815418]
[1753795991778,0.1681476,118980.0,118970.0,1.4815418]
[1753795992371,0.1681476,118980.0,118970.0,1.55049399]
[1753795992770,0.3235476,118980.0,118970.0,1.38237219]
[1753795993075,0.2981376,118980.0,118970.0,1.38237219]
[1753795993872,0.2570976,118980.0,118970.0,1.55049389]
[1753795994182,0.1681476,118980.0,118970.0,1.55049389]
[1753795995785,0.4319176,118980.0,118970.0,1.38237219]
[1753795995978,0.4104776,118980.0,118970.0,1.38237219]